Cogmind - Beta 11 @@@ ROGUE MODE // 2022.03.30 @ 09:41:38 Player: Happytimes Result: Self-destructed Performance ------------- Evolutions (1) 500 Regions Visited (3) 600 Robots Destroyed (8) 40 Value Destroyed (271) 271 Prototype IDs (1) 20 Alien Tech Used (0) 0 Bonus (0) 0 TOTAL SCORE: 1431 Bonus ------- None Cogmind --------- Core Integrity 294/400 Matter 300/300 Energy 100/100 System Corruption 0% Temperature Cool (9) Movement Rolling (95) Ox1 Location -9/Materials Parts ------- > --- POWER (1) -------- (None) > --- PROPULSION (3) --- Wheel Improved Flight Unit > --- UTILITY (3) ------ Small Storage Unit Sensor Array > --- WEAPON (2) ------- Beam Cannon Light Cannon > --- INVENTORY (8) ---- Ion Engine Aluminum Leg Hover Unit Light Assault Rifle Datajack Mining Laser Peak State ------------ > --- POWER ------------ Light Nuclear Core > --- PROPULSION ------- Wheel Wheel Improved Flight Unit > --- UTILITY ---------- Small Storage Unit Sensor Array > --- WEAPON ----------- Beam Cannon Light Cannon > --- INVENTORY -------- Ion Engine Aluminum Leg Hover Unit Heat Sink Light Assault Rifle Mining Laser [Rating: 12] Favorites ----------- Power Light Nuclear Core Engine Ion Engine Power Core Light Nuclear Core Propulsion Wheel Wheel Wheel Flight Unit Improved Flight Unit Utility Small Storage Unit Device Sensor Array Storage Small Storage Unit Weapon Light Cannon Energy Cannon Beam Cannon Ballistic Gun Assault Rifle Ballistic Cannon Light Cannon Build | -11 -10 -10 -9 ------- Run | Scr Mat Min Mat Slots Evolved 2 | . . . 2 Power . | . . . . Propulsion 1 | . . . 1 Utility 1 | . . . 1 Weapon . | . . . . Parts Attached 14 | 7 4 . 3 Power 2 | 1 1 . . Engine 1 | 1 . . . Core 1 | . 1 . . Reactor . | . . . . Propulsion 4 | 2 . . 2 Treads . | . . . . Leg . | . . . . Wheel 2 | 2 . . . Hover . | . . . . Flight 2 | . . . 2 Utility 3 | 1 1 . 1 Device 2 | . 1 . 1 Storage 1 | 1 . . . Processor . | . . . . Hackware . | . . . . Protection . | . . . . Artifact . | . . . . Weapon 5 | 3 2 . . Energy Gun . | . . . . Energy Cannon 1 | . 1 . . Ballistic Gun 3 | 3 . . . Ballistic Cannon 1 | . 1 . . Launcher . | . . . . Special Weapon . | . . . . Impact Weapon . | . . . . Slashing Weapon . | . . . . Piercing Weapon . | . . . . Special Melee Weapon . | . . . . Unidentified Prototypes 1 | . . . 1 Parts Lost 3 | . . . 3 Power 1 | . . . 1 Propulsion 1 | . . . 1 Utility 1 | . . . 1 Weapon . | . . . . Highest Loss Streak 2 | . . . 2 To Critical Strikes . | . . . . Average Slot Usage (%) 89 | . 90 100 86 Engine 2 | . 8 . . Core 9 | . 5 14 10 Wheel 22 | . 28 28 19 Flight 6 | . . . 10 Device 10 | . 4 14 12 Storage 12 | . 14 14 11 Energy Cannon 8 | . 1 14 11 Ballistic Gun 6 | . 24 . . Ballistic Cannon 8 | . 1 14 11 Naked Turns . | . . . . Heaviest Build 18 | 14 17 17 18 Greatest Support 20 | 20 20 20 20 Greatest Overweight (x) 1 | 1 . . 1 Average Overweight (x) . | . . . . Largest Inventory Capacity 8 | 8 8 8 8 Average Capacity 7 | 7 8 8 8 Most Carried 7 | 5 7 6 7 Average Carried 5 | 1 3 6 6 Final Capacity 8 | 8 8 8 8 Final Carried 6 | 1 6 6 6 Class Distribution -------------------- 100% | Mutant Dominant Class ---------------- Mutant | -10/Materials Mutant | -10/Mines Mutant | -9/Materials Resources | -11 -10 -10 -9 ----------- Run | Scr Mat Min Mat Matter Collected 473 | 217 152 . 104 Remotely . | . . . . Salvage Created 301 | . 193 . 108 Parts 23 | . 14 . 9 Haulers Intercepted . | . . . . Recyclers Shooed 1 | . 1 . . Parts Field Recycled . | . . . . Retrieved Matter . | . . . . Parts Self-Destructed . | . . . . Prevented . | . . . . Kills | -11 -10 -10 -9 ------- Run | Scr Mat Min Mat Combat Hostiles Destroyed 6 | . 4 . 2 Guns 4 | . 4 . . Cannons 2 | . . . 2 Classes Destroyed 4 | . 2 . 2 Operator 1 | . . . 1 Watcher 1 | . 1 . . Grunt 4 | . 4 . . Sentry 2 | . . . 2 Best Kill Streak 2 | . 2 . 1 Combat Bots Only 2 | . 2 . 1 Max Kills in Single Turn 1 | . 1 . 1 Gunslinging . | . . . . Exploded . | . . . . Melee . | . . . . Uniques/NPCs Destroyed . | . . . . Combat | -11 -10 -10 -9 -------- Run | Scr Mat Min Mat Damage Taken 545 | . 161 . 384 Core 120 | . 14 . 106 Absorbed by Shields . | . . . . Core Remaining (%) 97 | 100 . 94 . Volleys Fired 27 | . 16 . 11 Largest 2 | . 2 . 2 Hottest 95 | . 40 . 95 Shots Fired 54 | . 32 . 22 Gun 32 | . 32 . . Cannon 22 | . . . 22 Launcher . | . . . . Special . | . . . . Kinetic 43 | . 32 . 11 Thermal 11 | . . . 11 Explosive . | . . . . Electromagnetic . | . . . . Robot Hit Streak 12 | . 12 . 3 Robot Miss Streak 2 | . 2 . 2 Penetration Max . | . . . . Secondary Targets . | . . . . Shots Hit Robots 34 | . 22 . 12 Core Hits 14 | . 9 . 5 Critical Kills . | . . . . Critical Parts Destroyed . | . . . . Critical Strikes 1 | . . . 1 Blast 1 | . . . 1 Melee Attacks . | . . . . Impact . | . . . . Slashing . | . . . . Piercing . | . . . . Sneak Attacks . | . . . . Combat Hostiles . | . . . . Follow-up Attacks . | . . . . Damage Inflicted 484 | . 279 . 205 Guns 279 | . 279 . . Cannons 205 | . . . 205 Explosions . | . . . . Melee . | . . . . Ramming . | . . . . Kinetic 397 | . 279 . 118 Thermal 87 | . . . 87 Explosive . | . . . . Electromagnetic . | . . . . Impact . | . . . . Slashing . | . . . . Piercing . | . . . . Highest Corruption . | . . . . Average Corruption . | . . . . Corruption Purged . | . . . . Corruption Blocked . | . . . . Overload Shots . | . . . . Overflow Damage . | . . . . Projectiles . | . . . . Explosions . | . . . . Melee . | . . . . Knockbacks . | . . . . Impact . | . . . . Kinetic . | . . . . Secondary . | . . . . Self-Inflicted Damage . | . . . . Shots . | . . . . Rammed . | . . . . Targets Rammed . | . . . . Kicked . | . . . . Crushed . | . . . . Highest Temperature 78 | . 20 . 78 Average Temperature 26 | . 8 . 30 Received Heat Transfer 246 | . 108 . 138 Siege Activations . | . . . . Robots Corrupted . | . . . . Combat Hostiles . | . . . . Parts Fried . | . . . . Impact Corruptions . | . . . . Robots Melted . | . . . . Combat Hostiles . | . . . . Parts Melted . | . . . . Heat Transferred 185 | . . . 185 Parts Sabotaged . | . . . . Parts Stolen . | . . . . Parts Stripped . | . . . . Power Chain Reactions . | . . . . Missiles Intercepted . | . . . . Alert | -11 -10 -10 -9 ------- Run | Scr Mat Min Mat Peak Influence 136 | . 115 44 136 Initial 44 | . . 44 16 Average 60 | . 76 44 63 Maximum Alert Level . | . . . . Low Security (%) 100 | 100 100 100 100 Level 1 . | . . . . Level 2 . | . . . . Level 3 . | . . . . Level 4 . | . . . . Level 5 . | . . . . High Security . | . . . . Max Security . | . . . . Squads Dispatched 1 | . . . 1 Investigation . | . . . . Extermination . | . . . . Reinforcement 1 | . . . 1 Assault . | . . . . Garrison . | . . . . Intercept . | . . . . Searches Triggered . | . . . . Construction Impeded . | . . . . Haulers Reinforced . | . . . . Active Scanning Responses . | . . . . Cargo Convoy Interrupts . | . . . . Stealth | -11 -10 -10 -9 --------- Run | Scr Mat Min Mat Distress Signals 1 | . . . 1 Communications Jammed . | . . . . Distress Signals . | . . . . Times Spotted 21 | . 6 . 15 Peak Tracking Total 8 | . 3 . 8 Tactical Retreats 1 | . . . 1 Traps | -11 -10 -10 -9 ------- Run | Scr Mat Min Mat Traps Triggered . | . . . . Indirectly . | . . . . Trap Hack Attempts . | . . . . Triggered . | . . . . Disarmed . | . . . . Reprogrammed . | . . . . Reused . | . . . . Traps Extracted . | . . . . Installed . | . . . . Triggered . | . . . . Machines | -11 -10 -10 -9 ---------- Run | Scr Mat Min Mat Machines Disabled . | . . . . Max in Single Turn . | . . . . Machines Sabotaged . | . . . . Garrisons Compromised . | . . . . Overloaded Fab Kills . | . . . . Hacking | -11 -10 -10 -9 --------- Run | Scr Mat Min Mat Machines Accessed 2 | . . . 2 Terminals 1 | . . . 1 Fabricators . | . . . . Repair Stations . | . . . . Recycling Units 1 | . . . 1 Scanalyzers . | . . . . Garrison Access . | . . . . Total Hacks 3 | . . . 3 Successful 1 | . . . 1 Failed 2 | . . . 2 Catastrophic . | . . . . Database Lockouts . | . . . . Manual . | . . . . Terminals 2 | . . . 2 Fabricators . | . . . . Repair Stations . | . . . . Recycling Units 1 | . . . 1 Scanalyzers . | . . . . Garrison Access . | . . . . Terminal Hacks . | . . . . Fabricator Hacks . | . . . . Repair Station Hacks . | . . . . Recycling Unit Hacks 1 | . . . 1 Report Inventory 1 | . . . 1 Scanalyzer . | . . . . Garrison Access Hacks . | . . . . Unauthorized Hacks . | . . . . Terminals . | . . . . Fabricators . | . . . . Repair Stations . | . . . . Recycling Units . | . . . . Scanalyzers . | . . . . Garrison Access . | . . . . Data Cores Recovered . | . . . . Used . | . . . . Hacking Detections 1 | . . . 1 Full Trace Events . | . . . . Feedback Events . | . . . . Feedback Blocked . | . . . . Robot Schematics Acquired . | . . . . Robots Built . | . . . . Authchips . | . . . . Time . | . . . . Total Robot Build Rating . | . . . . Part Schematics Acquired . | . . . . Parts Built . | . . . . Authchips . | . . . . Time . | . . . . Total Part Build Rating . | . . . . Parts Repaired . | . . . . Time . | . . . . Parts Recycled . | . . . . Recycled Matter . | . . . . Retrieved Matter . | . . . . Retrieved Components . | . . . . Parts Scanalyzed . | . . . . Part Schematics Acquired . | . . . . Parts Damaged . | . . . . Bothacking | -11 -10 -10 -9 ------------ Run | Scr Mat Min Mat Used RIF Installer . | . . . . Robots Hacked . | . . . . Non-combat . | . . . . Combat . | . . . . Robot Hacks Applied . | . . . . Relay Couplers Released . | . . . . Fabnet Peak Effective % . | . . . . Robots Rewired . | . . . . Allies Hacked . | . . . . Hacks Repelled . | . . . . Allies | -11 -10 -10 -9 -------- Run | Scr Mat Min Mat Total Allies . | . . . . Largest Group . | . . . . Highest-Rated Group . | . . . . Highest-Rated Ally . | . . . . Total Orders . | . . . . Ally Attacks . | . . . . Total Damage . | . . . . Kills . | . . . . Allies Corrupted . | . . . . Allies Melted . | . . . . Intel | -11 -10 -10 -9 ------- Run | Scr Mat Min Mat Robot Analysis Total . | . . . . Derelict Logs Recovered 1 | . . 1 . Drone Launches . | . . . . Drone Recoveries . | . . . . Exploration | -11 -10 -10 -9 ------------- Run | Scr Mat Min Mat Turns Passed 676 | 45 165 63 403 Spaces Moved 462 | 44 110 79 229 Core 15 | 15 . . . Treads . | . . . . Legs . | . . . . Wheels 447 | 29 110 79 229 Hover . | . . . . Flight . | . . . . Fastest Speed 50 | 50 80 80 80 Average Speed 80 | 70 80 80 83 Slowest Speed 95 | 95 80 80 95 Overloaded Moves . | . . . . Propulsion Burnouts . | . . . . Robots Hopped . | . . . . Cave-ins Triggered . | . . . . Exploration Rate (%) 19 | 4 26 22 25 Regions Visited 3 Branch Regions 1 Pre-discovered Areas 1 | . . 1 . Known Exits Taken . | . . . . Unknown Exits Taken 3 | 1 1 1 . Scrap Searched . | . . . . Spaces Dug . | . . . . Terrain Destroyed . | . . . . Melee . | . . . . Projectile . | . . . . AOE . | . . . . Terrain Rammed . | . . . . Walls Destroyed . | . . . . Machines Disabled . | . . . . Actions | -11 -10 -10 -9 --------- Run | Scr Mat Min Mat Total 707 | 56 154 78 419 Wait 188 | . 15 . 173 Move 459 | 43 109 78 229 Hop . | . . . . Pick Up 16 | 6 8 . 2 Fast Attach 1 | 1 . . . Attach 9 | 5 1 . 3 Detach 1 | . . . 1 Swap 4 | 1 3 . . Drop 2 | . 2 . . Fire 27 | . 16 . 11 Melee . | . . . . Ram . | . . . . Kick . | . . . . Crush . | . . . . Escape Stasis . | . . . . Rewire . | . . . . Trap . | . . . . Miscellaneous . | . . . . Route ------- -11/Scrapyard -10/Materials -10/Mines -9/Materials (discovered 1 exit: [*Min]) History --------- Turn | Location | Event 6 | -11/Scrapyard | Discovered new exit (range 15) 46 | -11/Scrapyard | Entered Materials 168 | -10/Materials | Discovered new exit (range 14) 211 | -10/Materials | Entered Mines 240 | -10/Mines | Discovered new exit (range 15) 240 | -10/Mines | Learned location of Mines (-9) 274 | -10/Mines | Entered Materials 274 | -9/Materials | Evolved 2 slots: Propulsion x1, Utility x1 306 | -9/Materials | Build established: Mutant 338 | -9/Materials | Discovered new exit (range 13) 677 | -9/Materials | Self-destructed Last Messages --------------- 00505_ ALERT: Hostiles spotted, dispatching reinforcements to Terminal M004. 00517_ O-16 Technician destroyed. 00522_ Acquired Datajack. 00524_ Acquired 8 matter. 00559_ Connecting with Terminal... 00599_ Wheel destroyed. 00606_ Y-45 Defender Imp. Ion Engine blasted off. 00610_ Critical hit (Burn: +37). 00615_ Y-45 Defender destroyed. 00623_ R-06 Scavenger collects Heat Sink. 00624_ Acquired 30 matter. 00627_ R-06 Scavenger collects Heat Sink. 00630_ W-16 Scout sends out distress signal. 00635_ Acquired 1 matter. 00658_ T-07 Excavator is excavating. 00659_ Lgt. Nuclear Core destroyed. 00665_ T-07 Excavator is excavating. 00669_ U-05 Engineer lays Concrete. 00677_ Heat Sink destroyed. Map ----- +----------------------------------------------------+ | ?????????????????????????????????????????????????? | | ?????????????????????????????????????????????????? | | ?????????????????????????????????????????????????? | | ?????????????????????????????????????????????????? | | ?????????????????????????????????????????????????? | | ?????????????????????????????????????????????????? | | ?????????????????????????????????????????????????? | | ?????????????????????????????????????????????????? | | ?????????????????????????????????????????????????? | | ??????????????????????????? ?????????????????????? | | ??????????????????????????? ?????????????????????? | | ??????????????????????????? ?????????????????????? | | ??????????????????????????? ?????????????????????? | | ????????????????????????????????????##???????????? | | ????????????????????????????????????# ????? #???? | | ??????????????????????????? ????????# ??? #???? | | ????????????????????#?????# #???????# """ #???? | | ???????????????????? ????# #???????# """ #???? | | ??????????????????? ""????# #???????# #???? | | ???????????????????""S ???# #???????# """ #???? | | ???????????????????"" ???# #???????# """ #???? | | ??????????????????? ??# #???##### """ #???? | | ???????????????????"""""?## #####?? #?? ?????? | | ?????????????????? """"" # ### ######+######## | | ????????????????# Y""""" # u | | ?????????????????# @ Y | | ?????????????????# # g gg | | ?????????????????# # ########## ####+# | | ?????????????????#######?## ##????????# #????? | | ??????????????????????????# #?????????# #????? | | ??????????????????????????# #?????????# #????? | | ??????????????????????????# #?????????# #????? | | ??????????????????????????#? #?????????# #????? | | ??????????????????????????# #?????????# #????? | | ??????????????????????????# #?????????# #????? | | ??????????????????????????# #??######?# #????? | | ??????????????????????????# #??# # #????? | | ??????????????????????????# #??# # #????? | | ??????????????????????????# #??# + #????? | | ??????????????????????????? ???#]] # #????? | | ?????????????????????????????????#]] # #????? | | ?????????????????????????????????# ?# #????? | | ?????????????????????????????????######?# #????? | | ????????????????????????????????????????# #????? | | ????????????????????????????????????????# #????? | | ????????????????????????????????????????# #????? | | ????????????????????????????????????????# #????? | | ????????????????????????????????????????# #????? | | ???????????????????????????????????????## ##???? | | ???????????????????????????#########+### ##### | +----------------------------------------------------+ Best States ------------- Heat Dissipation 38 Energy Generation 14 Energy Capacity 250 Matter Stores 300 Matter Capacity 300 Sight Range 16 Robot Scan Range 14 Terrain Scan Density 10 Evasion (%) 50 Item Schematics ----------------- None Robot Schematics ------------------ None Fabricated ------------ Nothing Alien Tech Used ----------------- None Achievements -------------- None Challenges ------------ None Game ------ Seed AutogunBorePurifier Manual? 0 Play Time 00:07:13 Cumulative 43.2 hours Start 2022.03.30 @ 09:37:00 End 2022.03.30 @ 09:41:38 Sessions 1 Manual Loads 0 Difficulty Rogue Special Mode None Game No. 132 Rogue 132 Adventurer 0 Explorer 0 Win Type - Total 0 Types 0/0/0/0/0/0/0/0/0 Lore% 32 Gallery% 45 Achievement% 37 Wizard Run 0 Options --------- ASCII 0 Keyboard 0 Movement Arrows Keybinds 0 Fullscreen 1 Font 18/SmallcapsGlow Map View 76x50 Tactical HUD 1 Map Filters NONE Filters NONE Steam 1 RUN: 68e1543b-4403-46c0-a593-665fe818af57